Body,Body Name,Date,TransNo,Amount � (Excl VAT),Supplier name,Description,Expense Area,Expense Type,Expense Code,
http://opendatacommunities.org/id/london-borough-council/sutton,London Borough of Sutton,01/04/2022,10007798,1.94, GOOGLE ADS8517410550,ADS - NOT ALONE IN SUTTON,Peoples Services,Publicity,A44266,
http://opendatacommunities.org/id/london-borough-council/sutton,London Borough of Sutton,22/04/2022,10007798,8.32, TWINKL,TWINKL SUBSCRIPTION,Health and Wellbeing,Equipment And Materials Purchase,A40000,
http://opendatacommunities.org/id/london-borough-council/sutton,London Borough of Sutton,05/04/2022,10007798,31.78, AMZNMKTPLACE AMAZON.CO,TOYS & EQUIPMENT,Health and Wellbeing,Equipment And Materials Purchase,A40000,
http://opendatacommunities.org/id/london-borough-council/sutton,London Borough of Sutton,11/04/2022,10007798,13.32, AMZNMKTPLACE,HAF PROJECT LUNCH PROVISIONS,Health and Wellbeing,Equipment And Materials Purchase,A40000,
http://opendatacommunities.org/id/london-borough-council/sutton,London Borough of Sutton,11/04/2022,10007798,62.96, SAINSBURYS.CO.UK,GROCERIES,Health and Wellbeing,Provisions,A41006,
http://opendatacommunities.org/id/london-borough-council/sutton,London Borough of Sutton,06/04/2022,10007798,11.00, SAINSBURYS S/MKTS,GROCERIES,Health and Wellbeing,Provisions,A41006,
http://opendatacommunities.org/id/london-borough-council/sutton,London Borough of Sutton,04/04/2022,10007798,169.00, SAINSBURYS.CO.UK,GROCERIES,Health and Wellbeing,Provisions,A41006,
http://opendatacommunities.org/id/london-borough-council/sutton,London Borough of Sutton,19/04/2022,10007798,98.01, SAINSBURYS.CO.UK,GROCERIES,Health and Wellbeing,Provisions,A41006,
http://opendatacommunities.org/id/london-borough-council/sutton,London Borough of Sutton,03/04/2022,10007798,18.16, TESCO STORE 3235,GROCERIES,Health and Wellbeing,Provisions,A41006,
http://opendatacommunities.org/id/london-borough-council/sutton,London Borough of Sutton,31/03/2022,10007798,11.00, ASDA SUPERSTORE,GROCERIES,Health and Wellbeing,Provisions,A41006,
http://opendatacommunities.org/id/london-borough-council/sutton,London Borough of Sutton,28/03/2022,10007798,26.81, SAINSBURYS S/MKTS,GROCERIES,Health and Wellbeing,Provisions,A41006,
http://opendatacommunities.org/id/london-borough-council/sutton,London Borough of Sutton,21/04/2022,10007798,300.00, AMAZON.CO.UK 2P46G4404,SPLIT - CONGRATULATIONS (FIRST PRIZE) - PRINTABLE AMAZON.CO.UK GIFT VOUCHER (100%),Health and Wellbeing,Equipment And Materials Purchase,A40000,
http://opendatacommunities.org/id/london-borough-council/sutton,London Borough of Sutton,21/04/2022,10007798,300.00, JACKSONSART.COM GIFT V,AMAZON VOUCHERS FOR YOUTH ARTS EXHIBITION WINNERS 2022,Health and Wellbeing,Equipment And Materials Purchase,A40000,
http://opendatacommunities.org/id/london-borough-council/sutton,London Borough of Sutton,31/03/2022,10007798,208.34, AMZNMKTPLACE,"SPLIT - FENTON PORTABLE PA SYSTEM ACTIVE SPEAKER BATTERY POWERED BLUETOOTH & 2X MICROPHONES 10"" (100%)",Health and Wellbeing,Equipment And Materials Purchase,A40000,
http://opendatacommunities.org/id/london-borough-council/sutton,London Borough of Sutton,12/04/2022,10007798,43.96, AMZNMKTPLACE AMAZON.CO,SPLIT - NESCAFE ORIGINAL INSTANT COFFEE GRANULES TIN 500G REF 12081372 (100%),Health and Wellbeing,Catering,A41000,
http://opendatacommunities.org/id/london-borough-council/sutton,London Borough of Sutton,11/04/2022,10007798,47.25, AMZNMKTPLACE AMAZON.CO,SPLIT - LAKELAND SEMI-SKIMMED MILK POTS (240) (70.36%),Health and Wellbeing,Catering,A41000,
http://opendatacommunities.org/id/london-borough-council/sutton,London Borough of Sutton,11/04/2022,10007798,19.90, AMZNMKTPLACE AMAZON.CO,SPLIT - 100 SILVERSPOON WHITE SUGAR STICK SACHETS (29.64%),Health and Wellbeing,Catering,A41000,
http://opendatacommunities.org/id/london-borough-council/sutton,London Borough of Sutton,11/04/2022,10007798,6.98, AMZNMKTPLACE AMAZON.CO,"SPLIT - TETLEY ORIGINAL 240 TEA BAGS, 750G, SINGLE PACK (100%)",Health and Wellbeing,Catering,A41000,
http://opendatacommunities.org/id/london-borough-council/sutton,London Borough of Sutton,05/04/2022,10007798,10.00, CARSHALTON CARNIVAL,CARSHALTON CARNIVAL - HEALTH VISITING & SCHOOL NURSING EVENT THAT WE WILL BE ATTENDING,Health and Wellbeing,Other Supplies & Services,A44291,
http://opendatacommunities.org/id/london-borough-council/sutton,London Borough of Sutton,05/04/2022,10007798,10.00, CARSHALTON CARNIVAL,CARSHALTON CARNIVAL - HEALTH VISITING & SCHOOL NURSING EVENT THAT WE WILL BE ATTENDING,Health and Wellbeing,Other Supplies & Services,A44291,
http://opendatacommunities.org/id/london-borough-council/sutton,London Borough of Sutton,03/04/2022,10007798,21.00, TWITTER ONLINE ADS,COVID ADS,Health and Wellbeing,Provider Contract Payments,A44290,
http://opendatacommunities.org/id/london-borough-council/sutton,London Borough of Sutton,01/04/2022,10007798,5.45, SNAP INC SNAP SNAP ADS,COVID ADVERTS,Health and Wellbeing,Provider Contract Payments,A44290,
http://opendatacommunities.org/id/london-borough-council/sutton,London Borough of Sutton,31/03/2022,10007798,4.79, SNAP INC SNAP SNAP ADS,COVID ADVERTS,Health and Wellbeing,Provider Contract Payments,A44290,
http://opendatacommunities.org/id/london-borough-council/sutton,London Borough of Sutton,30/03/2022,10007798,5.02, SNAP INC SNAP SNAP ADS,COVID ADVERTS,Health and Wellbeing,Provider Contract Payments,A44290,
http://opendatacommunities.org/id/london-borough-council/sutton,London Borough of Sutton,30/03/2022,10007798,4.90, SNAP INC SNAP SNAP ADS,COVID ADVERTS,Health and Wellbeing,Provider Contract Payments,A44290,
http://opendatacommunities.org/id/london-borough-council/sutton,London Borough of Sutton,23/04/2022,10007798,94.14, FACEBK 8H59DFPAL2,COVID FACEBOOK ADVERTS,Health and Wellbeing,Provider Contract Payments,A44290,
http://opendatacommunities.org/id/london-borough-council/sutton,London Borough of Sutton,08/04/2022,10007798,91.49, FACEBK XTAJ4F3BL2,SPLIT - COVID (45.75%),Health and Wellbeing,Provider Contract Payments,A44290,
http://opendatacommunities.org/id/london-borough-council/sutton,London Borough of Sutton,17/04/2022,10007798,200.00, FACEBK 69BFMDXAL2,COVID ADVERTS,Health and Wellbeing,Provider Contract Payments,A44290,
http://opendatacommunities.org/id/london-borough-council/sutton,London Borough of Sutton,13/04/2022,10007798,200.00, FACEBK DT4G6FPAL2,COVID ADVERTS,Health and Wellbeing,Provider Contract Payments,A44290,
http://opendatacommunities.org/id/london-borough-council/sutton,London Borough of Sutton,28/03/2022,10007798,7.64, SNAP INC SNAP SNAP ADS,COVID ADVERTS,Health and Wellbeing,Provider Contract Payments,A44290,
http://opendatacommunities.org/id/london-borough-council/sutton,London Borough of Sutton,03/04/2022,10007798,8.32, SPOTIFY P1AB18F018,MUSIC FOR WEDDINGS,Health and Wellbeing,Subscriptions,A47010,
http://opendatacommunities.org/id/london-borough-council/sutton,London Borough of Sutton,05/04/2022,10007798,13.79, AMZNMKTPLACE AMAZON.CO,"SPLIT - LOGITECH H111 WIRED HEADSET, STEREO HEADPHONES WITH NOISE-CANCELLING MICROPHONE, 3.5 MM AUDIO JACK, PC/MAC/LAPTOP/SMARTPHONE/TABLET - BLACK (100%)",Peoples Services,Equipment And Materials Purchase,A40000,
http://opendatacommunities.org/id/london-borough-council/sutton,London Borough of Sutton,20/04/2022,10007798,0.15, PORTANT.CO,5.38 PORTANT YOUR RECEIPT FROM PORTANT PTY LTD #2223-8028,Peoples Services,ICT Support - Other Recovery,R20050,
http://opendatacommunities.org/id/london-borough-council/sutton,London Borough of Sutton,19/04/2022,10007798,5.38, PORTANT.CO,5.38 PORTANT YOUR RECEIPT FROM PORTANT PTY LTD #2223-8028,Peoples Services,ICT Support - Other Recovery,R20050,
http://opendatacommunities.org/id/london-borough-council/sutton,London Borough of Sutton,11/04/2022,10007798,84.00, SITEGROUND HOSTING,YEARLY SUBSCRIPTION TO SITEGROUND,Peoples Services,Publicity,A44266,
http://opendatacommunities.org/id/london-borough-council/sutton,London Borough of Sutton,08/04/2022,10007798,30.91, FACEBK XTAJ4F3BL2,SPLIT - SUTTON SPRING CLEAN (15.46%),Resources,Publicity,A44266,
http://opendatacommunities.org/id/london-borough-council/sutton,London Borough of Sutton,08/04/2022,10007798,10.56, FACEBK XTAJ4F3BL2,SPLIT - COMMUNITY AWARDS (5.28%),Resources,Publicity,A44266,
http://opendatacommunities.org/id/london-borough-council/sutton,London Borough of Sutton,19/04/2022,10007798,9.75, MAILCHIMP    MISC,NEWSLETTER DATABASE SUBSCRIPTION,Resources,Publicity,A44266,
http://opendatacommunities.org/id/london-borough-council/sutton,London Borough of Sutton,14/04/2022,10007798,295.52, MAILCHIMP    MISC,NEWSLETTER DATABASE SUBSCRIPTION,Resources,Publicity,A44266,
http://opendatacommunities.org/id/london-borough-council/sutton,London Borough of Sutton,13/04/2022,10007798,0.40, CLIPCHAMP.COM,VIDEO EDITING SOFTWARE SUBSCRIPTION,Resources,Publicity,A44266,
http://opendatacommunities.org/id/london-borough-council/sutton,London Borough of Sutton,12/04/2022,10007798,13.93, CLIPCHAMP.COM,VIDEO EDITING SOFTWARE SUBSCRIPTION,Resources,Publicity,A44266,
http://opendatacommunities.org/id/london-borough-council/sutton,London Borough of Sutton,04/04/2022,10007798,0.27, OTTER.AI,TRANSLATION SOFTWARE SUBSCRIPTION,Resources,Publicity,A44266,
http://opendatacommunities.org/id/london-borough-council/sutton,London Borough of Sutton,03/04/2022,10007798,8.27, OTTER.AI,TRANSLATION SOFTWARE SUBSCRIPTION,Resources,Publicity,A44266,
http://opendatacommunities.org/id/london-borough-council/sutton,London Borough of Sutton,26/04/2022,10007798,1.53, PADDLE.NET  GOOGLEADON,CL&G,Resources,"Grants, Contributions & Donations",A47005,
http://opendatacommunities.org/id/london-borough-council/sutton,London Borough of Sutton,25/04/2022,10007798,55.52, PADDLE.NET  GOOGLEADON,CL&G,Resources,"Grants, Contributions & Donations",A47005,
http://opendatacommunities.org/id/london-borough-council/sutton,London Borough of Sutton,20/04/2022,10007798,533.95, ARGOS LTD,CL&G,Resources,"Grants, Contributions & Donations",A47005,
http://opendatacommunities.org/id/london-borough-council/sutton,London Borough of Sutton,20/04/2022,10007798,330.00, ARGOS LTD,CL&G,Resources,"Grants, Contributions & Donations",A47005,
http://opendatacommunities.org/id/london-borough-council/sutton,London Borough of Sutton,20/04/2022,10007798,-235.00, ARGOS LTD,CL&G,Resources,"Grants, Contributions & Donations",A47005,
http://opendatacommunities.org/id/london-borough-council/sutton,London Borough of Sutton,20/04/2022,10007798,-315.00, ARGOS LTD,CL&G,Resources,"Grants, Contributions & Donations",A47005,
http://opendatacommunities.org/id/london-borough-council/sutton,London Borough of Sutton,20/04/2022,10007798,-345.00, ARGOS LTD,CL&G,Resources,"Grants, Contributions & Donations",A47005,
http://opendatacommunities.org/id/london-borough-council/sutton,London Borough of Sutton,14/04/2022,10007798,408.00, CURRYS ONLINE,CL&G,Resources,"Grants, Contributions & Donations",A47005,
http://opendatacommunities.org/id/london-borough-council/sutton,London Borough of Sutton,14/04/2022,10007798,-255.00, ARGOS LTD,CL&G,Resources,"Grants, Contributions & Donations",A47005,
http://opendatacommunities.org/id/london-borough-council/sutton,London Borough of Sutton,14/04/2022,10007798,-201.95, ARGOS LTD,CL&G,Resources,"Grants, Contributions & Donations",A47005,
http://opendatacommunities.org/id/london-borough-council/sutton,London Borough of Sutton,13/04/2022,10007798,199.00, CURRYS ONLINE,CL&G,Resources,"Grants, Contributions & Donations",A47005,
http://opendatacommunities.org/id/london-borough-council/sutton,London Borough of Sutton,13/04/2022,10007798,-255.00, ARGOS LTD,CL&G,Resources,"Grants, Contributions & Donations",A47005,
http://opendatacommunities.org/id/london-borough-council/sutton,London Borough of Sutton,13/04/2022,10007798,-201.95, ARGOS LTD,CL&G,Resources,"Grants, Contributions & Donations",A47005,
http://opendatacommunities.org/id/london-borough-council/sutton,London Borough of Sutton,13/04/2022,10007798,201.95, ARGOS LTD,CL&G,Resources,"Grants, Contributions & Donations",A47005,
http://opendatacommunities.org/id/london-borough-council/sutton,London Borough of Sutton,13/04/2022,10007798,255.00, ARGOS LTD,CL&G,Resources,"Grants, Contributions & Donations",A47005,
http://opendatacommunities.org/id/london-borough-council/sutton,London Borough of Sutton,13/04/2022,10007798,201.95, ARGOS LTD,CL&G,Resources,"Grants, Contributions & Donations",A47005,
http://opendatacommunities.org/id/london-borough-council/sutton,London Borough of Sutton,13/04/2022,10007798,255.00, ARGOS LTD,CL&G,Resources,"Grants, Contributions & Donations",A47005,
http://opendatacommunities.org/id/london-borough-council/sutton,London Borough of Sutton,12/04/2022,10007798,403.95, ARGOS LTD,CL&G,Resources,"Grants, Contributions & Donations",A47005,
http://opendatacommunities.org/id/london-borough-council/sutton,London Borough of Sutton,12/04/2022,10007798,110.00, ARGOS LTD,CL&G,Resources,"Grants, Contributions & Donations",A47005,
http://opendatacommunities.org/id/london-borough-council/sutton,London Borough of Sutton,11/04/2022,10007798,424.95, ARGOS LTD,CL&G,Resources,"Grants, Contributions & Donations",A47005,
http://opendatacommunities.org/id/london-borough-council/sutton,London Borough of Sutton,08/04/2022,10007798,424.95, ARGOS LTD,CL&G,Resources,"Grants, Contributions & Donations",A47005,
http://opendatacommunities.org/id/london-borough-council/sutton,London Borough of Sutton,07/04/2022,10007798,-262.95, ARGOS LTD,CL&G,Resources,"Grants, Contributions & Donations",A47005,
http://opendatacommunities.org/id/london-borough-council/sutton,London Borough of Sutton,07/04/2022,10007798,-235.00, ARGOS LTD,CL&G,Resources,"Grants, Contributions & Donations",A47005,
http://opendatacommunities.org/id/london-borough-council/sutton,London Borough of Sutton,05/04/2022,10007798,198.95, ARGOS LTD,CL&G,Resources,"Grants, Contributions & Donations",A47005,
http://opendatacommunities.org/id/london-borough-council/sutton,London Borough of Sutton,05/04/2022,10007798,523.95, ARGOS LTD,CL&G,Resources,"Grants, Contributions & Donations",A47005,
http://opendatacommunities.org/id/london-borough-council/sutton,London Borough of Sutton,05/04/2022,10007798,235.00, ARGOS LTD,CL&G,Resources,"Grants, Contributions & Donations",A47005,
http://opendatacommunities.org/id/london-borough-council/sutton,London Borough of Sutton,05/04/2022,10007798,262.95, ARGOS LTD,CL&G,Resources,"Grants, Contributions & Donations",A47005,
http://opendatacommunities.org/id/london-borough-council/sutton,London Borough of Sutton,04/04/2022,10007798,230.00, ARGOS LTD,CL&G,Resources,"Grants, Contributions & Donations",A47005,
http://opendatacommunities.org/id/london-borough-council/sutton,London Borough of Sutton,04/04/2022,10007798,264.95, ARGOS LTD,CL&G,Resources,"Grants, Contributions & Donations",A47005,
http://opendatacommunities.org/id/london-borough-council/sutton,London Borough of Sutton,04/04/2022,10007798,112.95, ARGOS LTD,CL&G,Resources,"Grants, Contributions & Donations",A47005,
http://opendatacommunities.org/id/london-borough-council/sutton,London Borough of Sutton,31/03/2022,10007798,94.95, ARGOS LTD,CL&G,Resources,"Grants, Contributions & Donations",A47005,
http://opendatacommunities.org/id/london-borough-council/sutton,London Borough of Sutton,30/03/2022,10007798,478.00, CURRYS ONLINE,CL&G,Resources,"Grants, Contributions & Donations",A47005,
http://opendatacommunities.org/id/london-borough-council/sutton,London Borough of Sutton,30/03/2022,10007798,-474.99, ARGOS LTD,CL&G,Resources,"Grants, Contributions & Donations",A47005,
http://opendatacommunities.org/id/london-borough-council/sutton,London Borough of Sutton,27/03/2022,10007798,20.00, TFL OYSTER AUTO TOPUP,CL&G,Resources,"Grants, Contributions & Donations",A47005,
http://opendatacommunities.org/id/london-borough-council/sutton,London Borough of Sutton,08/04/2022,10007798,67.04, FACEBK XTAJ4F3BL2,SPLIT - COVID BUSINESS RELIEF (33.52%),Resources,Printing,A43010,
http://opendatacommunities.org/id/london-borough-council/sutton,London Borough of Sutton,25/04/2022,10007798,11.65, AMZNMKTPLACE AMAZON.CO,BLACK TAPE FOR FIXING DOWN CORREX IN GARDEN ROOM AT THE RUSSETTINGS AS PART OF ELECTIONS.  TO BE RECHARGED TO ELECTORAL SERVICES.,Resources,Contingency,A49001,
http://opendatacommunities.org/id/london-borough-council/sutton,London Borough of Sutton,21/04/2022,10007798,285.70, AMZNMKTPLACE,2 X BODY CAMERAS FOR USE BY SECURITY GUARDS AS PART OF THEIR DUTIES IN CIVIC OFFICES.,Resources,Contingency,A49001,
http://opendatacommunities.org/id/london-borough-council/sutton,London Borough of Sutton,21/04/2022,10007798,32.34, AMZNMKTPLACE,CABLE TIES FOR TIDYING UP DESK CABLING ON ALL DESKS IN CIVIC OFFICES.,Resources,Contingency,A49001,
http://opendatacommunities.org/id/london-borough-council/sutton,London Borough of Sutton,20/04/2022,10007798,224.17, AMZNMKTPLACE,VARIOUS ITEMS REQUIRED FOR THE LONDON CANCER HUB INNOVATION GATEWAY.,Resources,Contingency,A49001,
http://opendatacommunities.org/id/london-borough-council/sutton,London Borough of Sutton,19/04/2022,10007798,4.99, AMZNMKTPLACE,VELCRO TO SECURE POWER PACKS BEHIND TVS FOR MEETING ROOMS.,Resources,Contingency,A49001,
http://opendatacommunities.org/id/london-borough-council/sutton,London Borough of Sutton,19/04/2022,10007798,133.42, CARBOCLASS LTD,CORREX TO PROTECT GARDEN ROOM AT THE RUSSETTINGS FOR ELECTIONS.  TO BE RECHARGED TO ELECTORAL SERVICES COST CODE.,Resources,Contingency,A49001,
http://opendatacommunities.org/id/london-borough-council/sutton,London Borough of Sutton,19/04/2022,10007798,42.15, AMZNMKTPLACE,FRAMES FOR 8 X LIBRARIES TO DISPLAY QUEENS JUBILEE PHOTOGRAPHS AS REQUESTED BY HELEN BAILEY.,Resources,Contingency,A49001,
http://opendatacommunities.org/id/london-borough-council/sutton,London Borough of Sutton,06/04/2022,10007798,43.67, WWW.SCREWFIX.COM,TRUNKING REQUIRED FOR MEETING ROOM CABLES ALONG WALLS.,Resources,Contingency,A49001,
http://opendatacommunities.org/id/london-borough-council/sutton,London Borough of Sutton,06/04/2022,10007798,51.19, AMZNMKTPLACE,REMOTE CONTROL HOLDERS AND EXTENSION LEAD REQUIRED FOR MEETING ROOMS.,Resources,Contingency,A49001,
http://opendatacommunities.org/id/london-borough-council/sutton,London Borough of Sutton,06/04/2022,10007798,7.07, AMZNMKTPLACE,CABLE TIES REQUIRED FOR TIDYING UP MEETING ROOM CABLES.,Resources,Contingency,A49001,
http://opendatacommunities.org/id/london-borough-council/sutton,London Borough of Sutton,31/03/2022,10007798,8.32, AMZNMKTPLACE,CABLE TIDY REQUIRED FOR MEETING ROOM CABLES.,Resources,Contingency,A49001,
http://opendatacommunities.org/id/london-borough-council/sutton,London Borough of Sutton,21/04/2022,10007798,232.02, MAILCHIMP,SHP MONTHLY SUBSCRIPTION,Development Growth and Regeneration,Publicity,A44266,
http://opendatacommunities.org/id/london-borough-council/sutton,London Borough of Sutton,19/04/2022,10007798,351.00, MALMAISON,Hotel Booking for Reiif Event,Development Growth and Regeneration,Hotel Accomodation,A46010,
http://opendatacommunities.org/id/london-borough-council/sutton,London Borough of Sutton,25/04/2022,10007798,66.30, LNER WEB SALES,Train Tickets to attend Reiif Event,Development Growth and Regeneration,Miscellaneous Expenses,A49000,
http://opendatacommunities.org/id/london-borough-council/sutton,London Borough of Sutton,25/04/2022,10007798,60.00, LNER WEB SALES,Train Tickets to attend Reiif Event,Development Growth and Regeneration,Miscellaneous Expenses,A49000,
http://opendatacommunities.org/id/london-borough-council/sutton,London Borough of Sutton,25/04/2022,10007798,10.00, AMAZON.CO.UK 2P6XD51W4,SPLIT - AMAZON LOGO SQUID - AMAZON.CO.UK EGIFT VOUCHER (100%),Peoples Services,Equipment And Materials Purchase,A40000,
http://opendatacommunities.org/id/london-borough-council/sutton,London Borough of Sutton,25/04/2022,10007798,10.00, AMAZON.CO.UK 2P8JC5134,SPLIT - AMAZON FOR ALL OCCASIONS - AMAZON.CO.UK EGIFT VOUCHER (100%),Peoples Services,Miscellaneous Expenses,A49000,
http://opendatacommunities.org/id/london-borough-council/sutton,London Borough of Sutton,19/04/2022,10007798,20.00, AMAZON.CO.UK 2E8B65IP4,E VOUCHER - FOR A YOUNG PERSON A61011 G00440 (100%),Peoples Services,Client Care/Assistance,A61011,
http://opendatacommunities.org/id/london-borough-council/sutton,London Borough of Sutton,22/04/2022,10007798,189.00, AMZNMKTPLACE,ITEM NEEDED FOR A CLIENT -  A61011 G03010 (100%),Peoples Services,Client Care/Assistance,A61011,
http://opendatacommunities.org/id/london-borough-council/sutton,London Borough of Sutton,07/04/2022,10007798,58.00, WWW.LEEDS-CASTLE.COM,2 TICKETS FOR LEEDS CASTLE,Peoples Services,Equipment And Materials Purchase,A40000,
http://opendatacommunities.org/id/london-borough-council/sutton,London Borough of Sutton,06/04/2022,10007798,266.62, ARGOS LTD,ITEM NEEDED FOR CLIENT,Peoples Services,Miscellaneous Expenses,A49000,
http://opendatacommunities.org/id/london-borough-council/sutton,London Borough of Sutton,31/03/2022,10007798,509.00, SUTTON APPLIANCES,SUTTON APPLIANCES,Peoples Services,Miscellaneous Expenses,A49000,
http://opendatacommunities.org/id/london-borough-council/sutton,London Borough of Sutton,30/03/2022,10007798,693.00, SUTTON APPLIANCES,SUTTON APPLIANCES,Peoples Services,Miscellaneous Expenses,A49000,
http://opendatacommunities.org/id/london-borough-council/sutton,London Borough of Sutton,30/03/2022,10007798,72.95, ARGOS LTD,ARGOS ORDER,Peoples Services,Miscellaneous Expenses,A49000,
http://opendatacommunities.org/id/london-borough-council/sutton,London Borough of Sutton,29/03/2022,10007798,137.95, ARGOS LTD,ARGOS ORDER,Peoples Services,Miscellaneous Expenses,A49000,
http://opendatacommunities.org/id/london-borough-council/sutton,London Borough of Sutton,21/04/2022,10007798,18.54, WILKO RETAIL LIMITED,BUTTERFIELD,Peoples Services,Miscellaneous Expenses,A49000,
http://opendatacommunities.org/id/london-borough-council/sutton,London Borough of Sutton,21/04/2022,10007798,15.00, THE WORKS,BUTTERFIELD,Peoples Services,Miscellaneous Expenses,A49000,
http://opendatacommunities.org/id/london-borough-council/sutton,London Borough of Sutton,21/04/2022,10007798,7.17, MCDONALDS,BUTTERFIELD,Peoples Services,Miscellaneous Expenses,A49000,
http://opendatacommunities.org/id/london-borough-council/sutton,London Borough of Sutton,07/04/2022,10007798,6.00, B & Q 1191,J FAMILY,Peoples Services,Miscellaneous Expenses,A49000,
http://opendatacommunities.org/id/london-borough-council/sutton,London Borough of Sutton,07/04/2022,10007798,8.00, SAINSBURYS S/MKTS,J FAMILY ACTIVITY,Peoples Services,Miscellaneous Expenses,A49000,
http://opendatacommunities.org/id/london-borough-council/sutton,London Borough of Sutton,19/04/2022,10007798,199.99, WAYFAIR UK3621978324,FURNITURE NEEDED FOR A YOUNG PERSON,Peoples Services,Set Up Costs - Children Leaving Care,A61021,
http://opendatacommunities.org/id/london-borough-council/sutton,London Borough of Sutton,08/04/2022,10007798,99.99, AMZNMKTPLACE,"SPLIT - COFFEE TABLE, COFFEE TABLE WITH STORAGE, BLACK GLOSS COFFEE TABLE WITH LED LIGHTS, COFFEE TABLE FOR LIVING ROOM RECTANGLE CENTRE TABLE WITH 2 DRAWERS (100%)",Peoples Services,Set Up Costs - Children Leaving Care,A61021,
http://opendatacommunities.org/id/london-borough-council/sutton,London Borough of Sutton,07/04/2022,10007798,86.80, HOLLYWOOD BOWL,HOLLYWOOD BOWL,Peoples Services,Miscellaneous Expenses,A49000,
http://opendatacommunities.org/id/london-borough-council/sutton,London Borough of Sutton,01/04/2022,10007798,732.76, WELCOME BREAK,"HOTEL STAY - THERE ARE 4 RECIPES, BUT ONLY ALLOWED ME TO UPLOAD 1",Peoples Services,Approved Lodgings,A61000,
http://opendatacommunities.org/id/london-borough-council/sutton,London Borough of Sutton,06/04/2022,10007798,119.45, MINICABIT,TAXI CAB FROM WHITSTABLE TO ASHFORD AND RETURN FOR LAC TEAM,Peoples Services,C.C.A Travel & Subsistance,A61010,
http://opendatacommunities.org/id/london-borough-council/sutton,London Borough of Sutton,06/04/2022,10007798,99.56, MINICABIT,TRAVEL - CAB FOR CLIENT,Peoples Services,C.C.A Travel & Subsistance,A61010,
http://opendatacommunities.org/id/london-borough-council/sutton,London Borough of Sutton,07/04/2022,10007798,72.00, STENA LINE TRAVEL,STENALINE,Peoples Services,C.C.A Travel & Subsistance,A61010,
http://opendatacommunities.org/id/london-borough-council/sutton,London Borough of Sutton,12/04/2022,10007798,-99.56, MINICABIT,REFUND - AS JOURNEY DID NOT TAKE PLACE,Peoples Services,C.C.A Travel & Subsistance,A61010,
http://opendatacommunities.org/id/london-borough-council/sutton,London Borough of Sutton,19/04/2022,10007798,5.99, AMZNMKTPLACE,ITEMS FOR A YOUNG PERSON (100%),Peoples Services,Miscellaneous Expenses,A49000,
http://opendatacommunities.org/id/london-borough-council/sutton,London Borough of Sutton,08/04/2022,10007798,12.49, AMZNMKTPLACE AMAZON.CO,SPLIT - CA SPORTS CRICKET TENNIS BALL HEAVY TENNIS BALL | 71 MM HEIGHT | 70 GRAMS HEAVY TENNIS BALL | PACK OF 6 | CRICKET TAPE BALL GAMES (100%),Peoples Services,Miscellaneous Expenses,A49000,
http://opendatacommunities.org/id/london-borough-council/sutton,London Borough of Sutton,08/04/2022,10007798,19.99, AMZNMKTPLACE AMAZON.CO,SPLIT - C.A CA VISION 3000 CRICKET BAT TAPE BALL TENNIS BALL BAT WOODEN HANDLE SIZE ADULTS FOR HITTING (100%),Peoples Services,Miscellaneous Expenses,A49000,
http://opendatacommunities.org/id/london-borough-council/sutton,London Borough of Sutton,08/04/2022,10007798,89.99, TESCO ONLINE,MOBILE PHONE,Peoples Services,Miscellaneous Expenses,A49000,
http://opendatacommunities.org/id/london-borough-council/sutton,London Borough of Sutton,01/04/2022,10007798,86.10, ASDA GROCERIES ONLINE,ASDA PAYMENT BEFORE REFUND,Peoples Services,Miscellaneous Expenses,A49000,
http://opendatacommunities.org/id/london-borough-council/sutton,London Borough of Sutton,01/04/2022,10007798,-5.15, ASDA GROCERIES ONLINE,ASDA PAYMENT AFTER REFUND,Peoples Services,Miscellaneous Expenses,A49000,
http://opendatacommunities.org/id/london-borough-council/sutton,London Borough of Sutton,20/04/2022,10007798,12.50, AMZNMKTPLACE,ITEM NEEDED FOR THE WILLOW RISE CHILDRENS HOME (100%),Peoples Services,Miscellaneous Expenses,A49000,
http://opendatacommunities.org/id/london-borough-council/sutton,London Borough of Sutton,20/04/2022,10007798,12.50, AMZNMKTPLACE,ITEM NEEDED FOR A CLIENT (100%),Peoples Services,Miscellaneous Expenses,A49000,
http://opendatacommunities.org/id/london-borough-council/sutton,London Borough of Sutton,17/04/2022,10007798,8.52, AMZNMKTPLACE,ITEM REQUIRED FOR SAFETY AT THE WILLOW RISE CHILDRENS HOME (100%),Peoples Services,Miscellaneous Expenses,A49000,
http://opendatacommunities.org/id/london-borough-council/sutton,London Borough of Sutton,14/04/2022,10007798,74.02, ZAFETY SUPPLIES LTD,ITEMS NEEDED FOR THE HOME,Peoples Services,Miscellaneous Expenses,A49000,
http://opendatacommunities.org/id/london-borough-council/sutton,London Borough of Sutton,21/04/2022,10007798,9.99, AMZNMKTPLACE,ITEM NEEDED FOR THE WILLOW RISE CHILDRENS HOME (100%),Peoples Services,Miscellaneous Expenses,A49000,
http://opendatacommunities.org/id/london-borough-council/sutton,London Borough of Sutton,11/04/2022,10007798,4.56, AMZNBUSINESS 2E6EU0AD4,ITEM NEEDED FOR THE WILLOW RISE CHILDRENS HOME (100%),Peoples Services,Miscellaneous Expenses,A49000,
http://opendatacommunities.org/id/london-borough-council/sutton,London Borough of Sutton,21/04/2022,10007798,15.99, AMZNMKTPLACE AMAZON.CO,ITEM NEEDED FOR THE WILLOW RISE CHILDRENS HOME (100%),Peoples Services,Miscellaneous Expenses,A49000,
http://opendatacommunities.org/id/london-borough-council/sutton,London Borough of Sutton,21/04/2022,10007798,8.99, AMZNMKTPLACE AMAZON.CO,ITEM NEEDED FOR THE WILLOW RISE CHILDRENS HOME (100%),Peoples Services,Miscellaneous Expenses,A49000,
http://opendatacommunities.org/id/london-borough-council/sutton,London Borough of Sutton,21/04/2022,10007798,7.50, AMZNMKTPLACE AMAZON.CO,ITEM NEEDED FOR THE WILLOW RISE CHILDRENS HOME (100%),Peoples Services,Miscellaneous Expenses,A49000,
http://opendatacommunities.org/id/london-borough-council/sutton,London Borough of Sutton,21/04/2022,10007798,15.99, AMZNMKTPLACE AMAZON.CO,ITEM NEEDED FOR THE WILLOW RISE CHILDRENS HOME (100%),Peoples Services,Miscellaneous Expenses,A49000,
http://opendatacommunities.org/id/london-borough-council/sutton,London Borough of Sutton,21/04/2022,10007798,9.09, AMZNMKTPLACE AMAZON.CO,ITEM NEEDED FOR THE WILLOW RISE CHILDRENS HOME (100%),Peoples Services,Miscellaneous Expenses,A49000,
http://opendatacommunities.org/id/london-borough-council/sutton,London Borough of Sutton,25/04/2022,10007798,9.97, AMZNMKTPLACE AMAZON.CO,ITEM NEEDED FOR THE WILLOW RISE CHILDRENS HOME (100%),Peoples Services,Miscellaneous Expenses,A49000,
http://opendatacommunities.org/id/london-borough-council/sutton,London Borough of Sutton,23/04/2022,10007798,7.99, AMZNMKTPLACE,ITEM NEEDED FOR THE WILLOW RISE CHILDRENS HOME (100%),Peoples Services,Miscellaneous Expenses,A49000,
http://opendatacommunities.org/id/london-borough-council/sutton,London Borough of Sutton,22/04/2022,10007798,12.50, COSTCO ONLINE UK LIMIT,MEMBERSHIP NEEDED FOR WILLOW RISE CHILDRENS HOME,Peoples Services,Miscellaneous Expenses,A49000,
http://opendatacommunities.org/id/london-borough-council/sutton,London Borough of Sutton,22/04/2022,10007798,9.95, AMZNMKTPLACE AMAZON.CO,ITEM NEEDED FOR THE WILLOW RISE CHILDRENS HOME (100%),Peoples Services,Miscellaneous Expenses,A49000,
http://opendatacommunities.org/id/london-borough-council/sutton,London Borough of Sutton,11/04/2022,10007798,22.27, ARGOS LTD,ITEM NEEDED FOR CLIENT,Peoples Services,Miscellaneous Expenses,A49000,
http://opendatacommunities.org/id/london-borough-council/sutton,London Borough of Sutton,06/04/2022,10007798,11.89, AMZNMKTPLACE,ITEM NEEDED FOR THE WILLOW RISE CHILDRENS HOME (100%),Peoples Services,Miscellaneous Expenses,A49000,
http://opendatacommunities.org/id/london-borough-council/sutton,London Borough of Sutton,30/03/2022,10007798,159.90, ZOOM.US 888-799-9666,SUBSCRIPTION NEEDED FOR THE TEAM,Peoples Services,Subscriptions,A47010,
http://opendatacommunities.org/id/london-borough-council/sutton,London Borough of Sutton,17/04/2022,10007798,159.90, ZOOM.US 888-799-9666,SUBSCRIPTION NEEDED FOR CLIENT,Peoples Services,Subscriptions,A47010,
http://opendatacommunities.org/id/london-borough-council/sutton,London Borough of Sutton,14/04/2022,10007798,14.00, LAMBETH INTERNET PAYM,BIRTH CERT REQUIRED - A40000 G03120,Peoples Services,Equipment And Materials Purchase,A40000,
http://opendatacommunities.org/id/london-borough-council/sutton,London Borough of Sutton,21/04/2022,10007798,31.24, TESCO STORES 5999,ITEMS REQUIRED FOR THE FAMILY CENTRE,Peoples Services,Equipment And Materials Purchase,A40000,
http://opendatacommunities.org/id/london-borough-council/sutton,London Borough of Sutton,19/04/2022,10007798,18.33, SUTTON REGISTER OFFICE,BIRTH CERT REQUIRED FOR LEGAL PURPOSES,Peoples Services,Equipment And Materials Purchase,A40000,
http://opendatacommunities.org/id/london-borough-council/sutton,London Borough of Sutton,19/04/2022,10007798,21.65, AMZNMKTPLACE,ITEMS NEEDED FOR SUTTON FAMILY CENTRE (109.34%),Peoples Services,Miscellaneous Expenses,A49000,
http://opendatacommunities.org/id/london-borough-council/sutton,London Borough of Sutton,19/04/2022,10007798,-1.85, AMZNMKTPLACE,ITEMS NEEDED FOR SUTTON FAMILY CENTRE (-28.02%),Peoples Services,Miscellaneous Expenses,A49000,
http://opendatacommunities.org/id/london-borough-council/sutton,London Borough of Sutton,19/04/2022,10007798,2.79, AMZNMKTPLACE,ITEMS NEEDED FOR THE SUTTON FAMILY CENTRE SITE (100%),Peoples Services,Miscellaneous Expenses,A49000,
http://opendatacommunities.org/id/london-borough-council/sutton,London Borough of Sutton,19/04/2022,10007798,5.99, AMZNMKTPLACE,ITEMS NEEDED FOR THE SUTTON FAMILY CENTRE SITE -  A49000 G03122 (45.45%),Peoples Services,Miscellaneous Expenses,A49000,
http://opendatacommunities.org/id/london-borough-council/sutton,London Borough of Sutton,19/04/2022,10007798,7.19, AMZNMKTPLACE,ITEMS NEEDED FOR THE SUTTON FAMILY CENTRE SITE -  A49000 G03122 (54.55%),Peoples Services,Miscellaneous Expenses,A49000,
http://opendatacommunities.org/id/london-borough-council/sutton,London Borough of Sutton,14/04/2022,10007798,60.00, WALLINGTON CARS & COUR,TAXI NEEDED FOR CLIENT,Peoples Services,C.C.A Travel & Subsistance,A61010,
http://opendatacommunities.org/id/london-borough-council/sutton,London Borough of Sutton,14/04/2022,10007798,41.67, WALLINGTON CARS & COUR,TAXI NEEDED FOR CLIENT,Peoples Services,C.C.A Travel & Subsistance,A61010,
http://opendatacommunities.org/id/london-borough-council/sutton,London Borough of Sutton,30/03/2022,10007798,500.00, WALLINGTON CARS & COUR,TAXI,Peoples Services,C.C.A Travel & Subsistance,A61010,
http://opendatacommunities.org/id/london-borough-council/sutton,London Borough of Sutton,22/04/2022,10007798,34.80, MULTIFLEET MINICABS,CAB PAYMENT,Peoples Services,C.C.A Travel & Subsistance,A61010,
http://opendatacommunities.org/id/london-borough-council/sutton,London Borough of Sutton,08/04/2022,10007798,700.00, WALLINGTON CARS & COUR,WALLINGTON CARS - CAB PAYMENT,Peoples Services,C.C.A Travel & Subsistance,A61010,
http://opendatacommunities.org/id/london-borough-council/sutton,London Borough of Sutton,07/04/2022,10007798,63.99, WF  UK3730215084,WAYFAIR PAYMENT - MATTRESS,Peoples Services,Client Care/Assistance,A61011,
http://opendatacommunities.org/id/london-borough-council/sutton,London Borough of Sutton,05/04/2022,10007798,97.99, WF  UK3578556524,BED FRAME WITH THREE POSTS,Peoples Services,Client Care/Assistance,A61011,
http://opendatacommunities.org/id/london-borough-council/sutton,London Borough of Sutton,14/04/2022,10007798,259.96, ARGOS LTD,ITEM NEEDED FOR CLIENT,Peoples Services,Client Care/Assistance,A61011,
http://opendatacommunities.org/id/london-borough-council/sutton,London Borough of Sutton,21/04/2022,10007798,13.38, AMZNMKTPLACE AMAZON.CO,SPLIT - CHILDREN FOOT MEASURER BABY FOOT MEASURING DEVICE MEASURE GAUGE TODDLER SHOE FITTING TOOL FOR SHOE FEET MEASURING RULER SIZER FOR INFANTS CHILDREN (100%),Peoples Services,Miscellaneous Expenses,A49000,
http://opendatacommunities.org/id/london-borough-council/sutton,London Borough of Sutton,13/04/2022,10007798,70.00, FACEBK  7RH9GCKH32,FACEBOOK ADVERTISING FOR FOSTERING RECRUITMENT,Peoples Services,Fostering Allowances,A56008,
http://opendatacommunities.org/id/london-borough-council/sutton,London Borough of Sutton,06/04/2022,10007798,35.00, MARKS&SPENCER PLC,M&S FLOWER BOUQUET,Peoples Services,Equipment And Materials Purchase,A40000,
http://opendatacommunities.org/id/london-borough-council/sutton,London Borough of Sutton,20/04/2022,10007798,22.07, AMZNMKTPLACE,ITEM NEEDED FOR A CLIENT - A49000 G03590 (41.6%),Peoples Services,Miscellaneous Expenses,A49000,
http://opendatacommunities.org/id/london-borough-council/sutton,London Borough of Sutton,20/04/2022,10007798,18.99, AMZNMKTPLACE,A49000 G03590 (35.8%),Peoples Services,Miscellaneous Expenses,A49000,
http://opendatacommunities.org/id/london-borough-council/sutton,London Borough of Sutton,20/04/2022,10007798,11.99, AMZNMKTPLACE,A49000 G03590 (22.6%),Peoples Services,Miscellaneous Expenses,A49000,
http://opendatacommunities.org/id/london-borough-council/sutton,London Borough of Sutton,20/04/2022,10007798,10.99, AMZNMKTPLACE,ITEM NEEDED FOR A CLIENT - A49000 G03590 (29.73%),Peoples Services,Miscellaneous Expenses,A49000,
http://opendatacommunities.org/id/london-borough-council/sutton,London Borough of Sutton,20/04/2022,10007798,11.99, AMZNMKTPLACE,ITEM NEEDED FOR A CLIENT (32.43%),Peoples Services,Miscellaneous Expenses,A49000,
http://opendatacommunities.org/id/london-borough-council/sutton,London Borough of Sutton,20/04/2022,10007798,13.99, AMZNMKTPLACE,ITEM NEEDED FOR A CLIENT (37.84%),Peoples Services,Miscellaneous Expenses,A49000,
http://opendatacommunities.org/id/london-borough-council/sutton,London Borough of Sutton,20/04/2022,10007798,10.53, AMZNMKTPLACE,ITEM NEEDED FOR A YOUNG PERSON - A49000 G03590 (30.5%),Peoples Services,Miscellaneous Expenses,A49000,
http://opendatacommunities.org/id/london-borough-council/sutton,London Borough of Sutton,20/04/2022,10007798,23.99, AMZNMKTPLACE,ITEM NEEDED FOR A YOUNG PERSON (69.5%),Peoples Services,Miscellaneous Expenses,A49000,
http://opendatacommunities.org/id/london-borough-council/sutton,London Borough of Sutton,20/04/2022,10007798,19.99, AMZNMKTPLACE,ITEM NEEDED FOR A CLIENT - A49000 G03590 (31.29%),Peoples Services,Miscellaneous Expenses,A49000,
http://opendatacommunities.org/id/london-borough-council/sutton,London Borough of Sutton,20/04/2022,10007798,12.95, AMZNMKTPLACE,ITEM NEEDED FOR A CLIENT (20.27%),Peoples Services,Miscellaneous Expenses,A49000,
http://opendatacommunities.org/id/london-borough-council/sutton,London Borough of Sutton,20/04/2022,10007798,15.95, AMZNMKTPLACE,ITEM NEEDED FOR A CLIENT (24.97%),Peoples Services,Miscellaneous Expenses,A49000,
http://opendatacommunities.org/id/london-borough-council/sutton,London Borough of Sutton,20/04/2022,10007798,14.99, AMZNMKTPLACE,ITEM NEEDED FOR A CLIENT (23.47%),Peoples Services,Miscellaneous Expenses,A49000,
http://opendatacommunities.org/id/london-borough-council/sutton,London Borough of Sutton,19/04/2022,10007798,465.50, S.C.T.S,SOCIAL CARE TRAINING SOLUTIONS X2 TRAINING SESSIONS,Peoples Services,Staff Development And Training,A15022,
http://opendatacommunities.org/id/london-borough-council/sutton,London Borough of Sutton,04/04/2022,10007798,"1,396.50", S.C.T.S,SOCIAL CARE TRAINING SOLUTIONS X4 TRAINING SESSIONS,Peoples Services,Staff Development And Training,A15022,
http://opendatacommunities.org/id/london-borough-council/sutton,London Borough of Sutton,09/04/2022,10007798,"1,896.00", HOLIDAY INN GATWICK WO,HOTEL STAY,Peoples Services,Client Care/Assistance,A61011,
http://opendatacommunities.org/id/london-borough-council/sutton,London Borough of Sutton,29/03/2022,10007798,300.00, 220-310-733 DEPOSIT,ACCOMODATION FOR CHILDRENS SOCIAL CARE,Peoples Services,Client Care/Assistance,A61011,
http://opendatacommunities.org/id/london-borough-council/sutton,London Borough of Sutton,06/04/2022,10007798,56.38, ARGOS LTD,ITEMS NEEDED FOR CLIENT,Peoples Services,Client Care/Assistance,A61011,
http://opendatacommunities.org/id/london-borough-council/sutton,London Borough of Sutton,11/04/2022,10007798,108.33, ARGOS LTD,ITEM NEEDED FOR CLIENT,Peoples Services,Client Care/Assistance,A61011,
http://opendatacommunities.org/id/london-borough-council/sutton,London Borough of Sutton,11/04/2022,10007798,24.96, ARGOS LTD,ITEM NEEDED FOR CLIENT,Peoples Services,Client Care/Assistance,A61011,
http://opendatacommunities.org/id/london-borough-council/sutton,London Borough of Sutton,29/03/2022,10007798,"2,829.17", HENRY ADAMS,HOTEL NEEDED FOR SOCIAL WORKER,Peoples Services,Bed & Breakfast,A56000,
http://opendatacommunities.org/id/london-borough-council/sutton,London Borough of Sutton,20/04/2022,10007798,160.00, CROSSROADS HOUSE,HOTEL REQUIRED FOR SOCIAL WORKER,Peoples Services,Bed & Breakfast,A56000,
http://opendatacommunities.org/id/london-borough-council/sutton,London Borough of Sutton,21/04/2022,10007798,"1,392.86", HENRY ADAMS,HOTEL NEEDED FOR SOCIAL WORKER,Peoples Services,Client Care/Assistance,A61011,
http://opendatacommunities.org/id/london-borough-council/sutton,London Borough of Sutton,05/04/2022,10007798,902.55, TRAVELODGE,HOTEL STAY,Peoples Services,Client Care/Assistance,A61011,
http://opendatacommunities.org/id/london-borough-council/sutton,London Borough of Sutton,05/04/2022,10007798,273.00, CHESSINGTON ADVENTURES,CHESSINGTON TICKETS,Peoples Services,Client Care/Assistance,A61011,
http://opendatacommunities.org/id/london-borough-council/sutton,London Borough of Sutton,05/04/2022,10007798,22.99, ARGOS LTD,ARGOS PAYMENT FOR MOBILE PHONE,Peoples Services,Client Care/Assistance,A61011,
http://opendatacommunities.org/id/london-borough-council/sutton,London Borough of Sutton,15/04/2022,10007798,-237.95, TRAVELODGE,HOTEL STAY,Peoples Services,Client Care/Assistance,A61011,
http://opendatacommunities.org/id/london-borough-council/sutton,London Borough of Sutton,20/04/2022,10007798,603.01, EDISONTRADING,FURNITURE FOR SUTTON CARE WORKS HUB,Peoples Services,Contract Cleaning,A27010,
http://opendatacommunities.org/id/london-borough-council/sutton,London Borough of Sutton,28/03/2022,10007798,36.00, SETON,FIRST AID KIT FOR COMMISSIONING POP-UP KIOSK,Peoples Services,Contract Cleaning,A27010,
http://opendatacommunities.org/id/london-borough-council/sutton,London Borough of Sutton,01/04/2022,10007798,89.03, STORAGEMART UK A-EA59C,STORAGE NEEDED FOR CLIENT,Peoples Services,Storage And Archiving Services,A44085,
http://opendatacommunities.org/id/london-borough-council/sutton,London Borough of Sutton,05/04/2022,10007798,80.00, ACCESS SUTTON,ACCESS SELF STORAGE,Peoples Services,Client Care/Assistance,A61011,
http://opendatacommunities.org/id/london-borough-council/sutton,London Borough of Sutton,08/04/2022,10007798,418.29, CS MORRISONS GIFT CARD,EMERGENCY FOOD VOUCHERS FOR START CLIENTS,Peoples Services,Miscellaneous Expenses,A49000,
http://opendatacommunities.org/id/london-borough-council/sutton,London Borough of Sutton,07/04/2022,10007798,420.21, HIGHSTREETVOUCHERS,EMERGENCY FOOD VOUCHERS FOR START CLIENTS,Peoples Services,Miscellaneous Expenses,A49000,
http://opendatacommunities.org/id/london-borough-council/sutton,London Borough of Sutton,05/04/2022,10007798,11.00, SUTTON REGISTER OFFICE,DEATH CERTIFICATE ROSE,Peoples Services,Funeral Expenses,A44220,
http://opendatacommunities.org/id/london-borough-council/sutton,London Borough of Sutton,06/04/2022,10007798,856.80, WWW.ETCVENUES.CO.UK,ETC VENUES - ROOM BOOKING AND REFRESHMENTS FOR SMT AWAYDAY 22ND APRIL (LUKE ADDAMS - AD FOR ASC),Peoples Services,Staff Development And Training,A15022,
http://opendatacommunities.org/id/london-borough-council/sutton,London Borough of Sutton,25/04/2022,10007798,19.00, ROYAL BRITISH LEGION,RBL DONATION - CASH BANKED,Corporate Balance Sheet,Sutton College,B32183,
http://opendatacommunities.org/id/london-borough-council/sutton,London Borough of Sutton,05/04/2022,10007798,174.87, COSTCO WHOLESALE #121,VENDING MACHINE SUPPLIES,Health and Wellbeing,Provisions,A41006,
http://opendatacommunities.org/id/london-borough-council/sutton,London Borough of Sutton,02/04/2022,10007798,38.25, GSUITE_SUTTONCOLLEGE.A,GOOGLE CLOUD EMEA LIMITED MAR 22 4091335697,Health and Wellbeing,Subscriptions,A47010,
http://opendatacommunities.org/id/london-borough-council/sutton,London Borough of Sutton,21/04/2022,10007798,81.00, AUTHSMTP.COM EMAIL,RENEWAL OF AUTHSMTP ACCOUNT - IT,Health and Wellbeing,Subscriptions,A47010,
http://opendatacommunities.org/id/london-borough-council/sutton,London Borough of Sutton,25/04/2022,10007798,14.00, SUTTON COLLEGE,TEST SUTTON COLLEGE ENROLMENT AND REFUND 250422 14.00,Health and Wellbeing,Publicity,A44266,
http://opendatacommunities.org/id/london-borough-council/sutton,London Borough of Sutton,25/04/2022,10007798,-14.00, SUTTON COLLEGE,TEST SUTTON COLLEGE ENROLMENT AND REFUND 250422 14.00,Health and Wellbeing,Publicity,A44266,
http://opendatacommunities.org/id/london-borough-council/sutton,London Borough of Sutton,21/04/2022,10007798,75.10, DISPLAYSENSE LTD,DISPLAYSENSE 210422 A0 FRAMES 90.12,Health and Wellbeing,Publicity,A44266,
http://opendatacommunities.org/id/london-borough-council/sutton,London Borough of Sutton,08/04/2022,10007798,47.99, ADOBE STOCK,ADOBE 070422 47.99,Health and Wellbeing,Publicity,A44266,
http://opendatacommunities.org/id/london-borough-council/sutton,London Borough of Sutton,30/03/2022,10007798,75.67, MAILCHIMP,MAILCHIMP 75.67 300322,Health and Wellbeing,Publicity,A44266,
http://opendatacommunities.org/id/london-borough-council/sutton,London Borough of Sutton,02/04/2022,10007798,44.05, SPORTSDIRECT.COM,5 CARLTON GT4 FEATHER BADMINTON SHUTTLES - 1 DOZEN (63.84%),Health and Wellbeing,Equipment And Materials Purchase,A40000,
http://opendatacommunities.org/id/london-borough-council/sutton,London Borough of Sutton,02/04/2022,10007798,24.95, SPORTSDIRECT.COM,DELIVERY - 5 CARLTON GT4 FEATHER BADMINTON SHUTTLES - 1 DOZEN (36.16%),Health and Wellbeing,Equipment And Materials Purchase,A40000,
http://opendatacommunities.org/id/london-borough-council/sutton,London Borough of Sutton,23/04/2022,10007798,1.35, LIDL UK,COOKERY INGREDIENTS,Health and Wellbeing,Equipment And Materials Purchase,A40000,
http://opendatacommunities.org/id/london-borough-council/sutton,London Borough of Sutton,23/04/2022,10007798,14.49, ASDA STORES,COOKERY INGREDIENTS,Health and Wellbeing,Equipment And Materials Purchase,A40000,
http://opendatacommunities.org/id/london-borough-council/sutton,London Borough of Sutton,23/04/2022,10007798,4.60, SAINSBURYS S/MKTS,COOKERY INGREDIENTS,Health and Wellbeing,Equipment And Materials Purchase,A40000,
http://opendatacommunities.org/id/london-borough-council/sutton,London Borough of Sutton,30/03/2022,10007798,15.30, SAINSBURYS S/MKTS,COOKERY INGREDIENTS,Health and Wellbeing,Equipment And Materials Purchase,A40000,
http://opendatacommunities.org/id/london-borough-council/sutton,London Borough of Sutton,14/04/2022,10007798,231.67, AMZNMKTPLACE AMAZON.CO,"SPLIT - 2021 15.6-INCH LAPTOP 8G + 256G CELERON J3455 HIGH-PERFORMANCE QUAD-CORE CPU, 2PCS 4500MAH CAN WORK CONTINUOUSLY FOR 6-8 HOURS, WIFI, HDMI, BLUETOOTH (100%)",Peoples Services,LAC - Education,A44280,
http://opendatacommunities.org/id/london-borough-council/sutton,London Borough of Sutton,13/04/2022,10007798,2.00, AMAZON.CO.UK 2E5DM4GC4,"SPLIT - THE SECRET KEEPER'S DAUGHTER: THE MOST GRIPPING AND EMOTIONAL PAGE-TURNER IN 2021, WITH A HEART-STOPPING TWIST! (100%)",Peoples Services,LAC - Education,A44280,
http://opendatacommunities.org/id/london-borough-council/sutton,London Borough of Sutton,11/04/2022,10007798,9.34, AMAZON.CO.UK 2E5EZ9E54,SPLIT - HOW NOT TO BE WRONG: THE HIDDEN MATHS OF EVERYDAY LIFE (100%),Peoples Services,LAC - Education,A44280,
http://opendatacommunities.org/id/london-borough-council/sutton,London Borough of Sutton,11/04/2022,10007798,28.99, AMAZON.CO.UK 2E8HO7AP4,SPLIT - CAMBRIDGE IGCSE COMPLETE ICT: STUDENT BOOK (THIRD EDITION) (100%),Peoples Services,LAC - Education,A44280,
http://opendatacommunities.org/id/london-borough-council/sutton,London Borough of Sutton,01/04/2022,10007798,2.82, AMZNMKTPLACE,SPLIT - OTHER WAYS TO SAY KIDS POSTER CHART CHILDRENS WALL CHART EDUCATIONAL READING CHILDS POSTER ART PRINT WALLCHART (100%),Peoples Services,LAC - Education,A44280,
http://opendatacommunities.org/id/london-borough-council/sutton,London Borough of Sutton,31/03/2022,10007798,12.28, AMZNMKTPLACE,SPLIT - SPORTS SCIENCE: A COMPLETE INTRODUCTION: TEACH YOURSELF (59.12%),Peoples Services,LAC - Education,A44280,
http://opendatacommunities.org/id/london-borough-council/sutton,London Borough of Sutton,31/03/2022,10007798,8.49, AMZNMKTPLACE,SPLIT - SPORT PSYCHOLOGY: A COMPLETE INTRODUCTION (TEACH YOURSELF) (40.88%),Peoples Services,LAC - Education,A44280,
http://opendatacommunities.org/id/london-borough-council/sutton,London Borough of Sutton,30/03/2022,10007798,3.62, AMZNMKTPLACE,"SPLIT - SUMBOX EDUCATIONAL 2D AND 3D SHAPES MATHS POSTER�, PURPLE 2039 (30.29%)",Peoples Services,LAC - Education,A44280,
http://opendatacommunities.org/id/london-borough-council/sutton,London Borough of Sutton,30/03/2022,10007798,8.32, AMZNMKTPLACE,"SPLIT - VERB FLASHCARDS - JUNIOR LEARNING FLASHCARDS, MULTICOLOR (69.71%)",Peoples Services,LAC - Education,A44280,
http://opendatacommunities.org/id/london-borough-council/sutton,London Borough of Sutton,29/03/2022,10007798,16.75, HODDER ED HUK DIST,SPLIT - HODDER ED HUK DIST (50%),Peoples Services,LAC - Education,A44280,
http://opendatacommunities.org/id/london-borough-council/sutton,London Borough of Sutton,29/03/2022,10007798,16.75, HODDER ED HUK DIST,SPLIT - HODDER ED HUK DIST (50%),Peoples Services,LAC - Education,A44280,
http://opendatacommunities.org/id/london-borough-council/sutton,London Borough of Sutton,29/03/2022,10007798,7.37, AMAZON.CO.UK 292U33JD4,SPLIT - THE PORPOISE: MARK HADDON (100%),Peoples Services,LAC - Education,A44280,
http://opendatacommunities.org/id/london-borough-council/sutton,London Borough of Sutton,29/03/2022,10007798,9.49, AMZNMKTPLACE,"SPLIT - CHAMPION'S MIND, THE: HOW GREAT ATHLETES THINK, TRAIN, AND THRIVE (100%)",Peoples Services,LAC - Education,A44280,
http://opendatacommunities.org/id/london-borough-council/sutton,London Borough of Sutton,29/03/2022,10007798,16.24, AMAZON.CO.UK 298MM4JP4,"SPLIT - AMAZON BASICS LARGE 98L DUFFEL BAG COLLAPSIBLE WITH TOP LOOP HANDLE - 50 POUND / 22.7 KILOGRAM CAPACITY, BLACK (100%)",Peoples Services,LAC - Education,A44280,
